Workbook

Sheet 10月份
A1: 陆 丰 市 2024 年 10 月 财 政 预 算 支 出 完 成 情 况 表
A2: 2024-10-31 | O2: 单位：万元
B3: 年 初 | C3: 年度预算计划 | F3: 累计 | G3: 占年 | H3: 上年 | I3: 比上年 | J3: 比上年 | K3: 本月 | L3: 上年 | M3: 比上年 | N3: 比上年
A4: 支 出 项 目 | B4: 预 算 | F4: 完成 | G4: 预算 | H4: 同期 | I4: 同期增 | J4: 同期增 | K4: 完成 | L4: 同月 | M4: 同月增 | N4: 同月增 | O4: 备 注
B5: 数 | C5: 上级补助 | D5: 上年结转 | E5: 本级安排 | F5: 数 | G5: % | H5: 完成 | I5: 减额 | J5: (减)% | K5: 数 | L5: 完成 | M5: 减额 | N5: (减)%
A6: 201、一般公共服务支出 | B6: =C6+D6+E6 -> 69,512 | C6: 2,326 | D6: 1,760 | E6: 65,426 | F6: 71,250 | G6: =F6/B6*100 -> 102.5 | H6: 62,726 | I6: =F6-H6 -> 8,524 | J6: =I6/H6*100 -> 13.6 | K6: 3,205 | L6: 2,943 | M6: =K6-L6 -> 262 | N6: =M6/L6*100 -> 8.9
A7: 203、国防支出 | B7: 161 | C7: 127 | D7: 34 | F7: 40 | G7: 24.8 | H7: 10 | I7: 30 | K7: 0 | L7: 10 | M7: -10
A8: 204、公共安全支出 | B8: 58,090 | C8: 4,995 | E8: 53,095 | F8: 64,357 | G8: 110.8 | H8: 48,294 | I8: 16,063 | J8: 33.3 | K8: 3,312 | L8: 2,773 | M8: 539 | N8: 19.4
A9: 205、教育支出 | B9: 243,007 | C9: 53,874 | D9: 6,314 | E9: 182,819 | F9: 143,327 | G9: 59.0 | H9: 140,572 | I9: 2,755 | J9: 2.0 | K9: 4,205 | L9: 22,313 | M9: -18,108 | N9: -81.2
A10: 206、科学技术支出 | B10: 3,069 | C10: 405 | D10: 1,520 | E10: 1,144 | F10: 720 | G10: 23.5 | H10: 805 | I10: -85 | J10: -10.6 | K10: 149 | L10: 16 | M10: 133 | N10: 831.3
A11: 207、文化体育与传媒支出 | B11: 10,333 | C11: 1,379 | D11: 14 | E11: 8,940 | F11: 3,506 | G11: 33.9 | H11: 4,034 | I11: -528 | J11: -13.1 | K11: 155 | L11: 406 | M11: -251 | N11: -61.8
A12: 208、社会保障和就业支出 | B12: 178,458 | C12: 85,411 | D12: 1,600 | E12: 91,447 | F12: 164,257 | G12: 92.0 | H12: 125,726 | I12: 38,531 | J12: 30.6 | K12: 28,895 | L12: 9,159 | M12: 19,736 | N12: 215.5
A13: 210、卫生健康支出 | B13: 140,567 | C13: 93,403 | D13: 1,793 | E13: 45,371 | F13: 117,427 | G13: 83.5 | H13: 123,690 | I13: -6,263 | J13: -5.1 | K13: 2,370 | L13: 12,176 | M13: -9,806 | N13: -80.5
A14: 211、节能环保支出 | B14: 5,191 | C14: 377 | D14: 1,308 | E14: 3,506 | F14: 1,593 | G14: 30.7 | H14: 2,296 | I14: -703 | J14: -30.6 | K14: 1 | L14: 93 | M14: -92 | N14: -98.9
A15: 212、城乡社区支出 | B15: 21,835 | C15: 912 | D15: 438 | E15: 20,485 | F15: 15,073 | G15: 69.0 | H15: 22,093 | I15: -7,020 | J15: -31.8 | K15: 1,208 | L15: 1,107 | M15: 101 | N15: 9.1
A16: 213、农林水支出 | B16: 108,249 | C16: 51,752 | D16: 42,127 | E16: 14,370 | F16: 53,460 | G16: 49.4 | H16: 63,907 | I16: -10,447 | J16: -16.3 | K16: 4,407 | L16: -2,178 | M16: 6,585 | N16: -302.3
A17: 214、交通运输支出 | B17: 34,638 | C17: 16,477 | D17: 8,278 | E17: 9,883 | F17: 9,353 | G17: 27.0 | H17: 50,842 | I17: -41,489 | J17: -81.6 | K17: 364 | L17: 535 | M17: -171 | N17: -32.0
A18: 215、资源勘探工业信息等支出 | B18: 765 | D18: 240 | E18: 525 | F18: 651 | G18: 85.1 | H18: 332 | I18: 319 | J18: 96.1 | K18: 106 | L18: 52 | M18: 54 | N18: 103.8
A19: 216、商业服务业等支出 | B19: 872 | D19: 110 | E19: 762 | F19: 941 | G19: 107.9 | H19: 923 | I19: 18 | J19: 2.0 | K19: 49 | L19: 53 | M19: -4 | N19: -7.5
A20: 217、金融支出 | B20: 0 | F20: 1 | H20: 33,962 | I20: -33,961 | J20: -100.0 | K20: 0 | L20: 2 | M20: -2
A21: 220、自然资源海洋气象等支出 | B21: 4,974 | C21: 450 | D21: 572 | E21: 3,952 | F21: 2,828 | G21: =F21/B21*100 -> 56.9 | H21: 3,273 | I21: -445 | J21: -13.6 | K21: 114 | L21: 453 | M21: -339 | N21: =M21/L21*100 -> -74.8
A22: 221、住房保障支出 | B22: 18,868 | D22: 183 | E22: 18,685 | F22: 20,180 | G22: 107.0 | H22: 13,258 | I22: 6,922 | J22: 52.2 | K22: 8,475 | L22: 446 | M22: 8,029 | N22: 1800.2
A23: 222、粮油物资储备支出 | B23: 2,700 | E23: 2,700 | F23: 1,100 | G23: 40.7 | H23: 1,629 | I23: -529 | J23: -32.5 | K23: 0 | L23: 300 | M23: -300
A24: 224、灾害防治及应急管理支出 | B24: 2,852 | C24: 89 | D24: 46 | E24: 2,717 | F24: 1,837 | G24: 64.4 | H24: 3,506 | I24: -1,669 | J24: -47.6 | K24: 106 | L24: 270 | M24: -164 | N24: -60.7
A25: 232、债务付息支出 | B25: 4,260 | E25: 4,260 | F25: 1,998 | G25: 46.9 | H25: 2,942 | I25: -944 | J25: -32.1 | K25: 0 | L25: 458 | M25: -458 | N25: -100.0
A26: 233、债务发行费用支出 | B26: 40 | E26: 40 | F26: 28 | G26: 70.0 | I26: 28 | K26: 0 | L26: 0 | M26: 0
A27: 227、预备费 | B27: 0 | I27: 0 | K27: 0 | L27: 0 | M27: 0
A28: 229、其他支出 | B28: 4,885 | E28: 4,885 | F28: 826 | G28: =F28/B28*100 -> 16.9 | H28: 2,222 | I28: -1,396 | J28: =I28/H28*100 -> -62.8 | K28: 51 | L28: 550 | M28: -499 | N28: =M28/L28*100 -> -90.7
A29: 一、一般公共预算支出合计 | B29: =SUM(B6:B28) -> 913,326 | C29: 311,977 | D29: 66,337 | E29: 535,012 | F29: 674,753 | G29: 73.9 | H29: =SUM(H6:H28) -> 707,042 | I29: -32,289 | J29: -4.6 | K29: 57,172 | L29: 51,937 | M29: 5,235 | N29: 10.1
A30: 二、政府性基金预算支出 | B30: 352,806 | F30: 212,199 | G30: 60.1 | H30: 374,959 | I30: -162,760 | J30: -43.4 | K30: 10,602 | L30: 12,964 | M30: -2,362 | N30: -18.2
A31: 三、国有资本经营支出 | B31: 5,666 | F31: 308 | G31: 5.4 | H31: 596 | I31: -288 | J31: -48.3 | K31: 0 | L31: 65 | M31: -65 | N31: -100.0
A32: 四、债务还本支出 | B32: 49,680 | F32: 51,130 | G32: 102.9 | H32: 83,999 | I32: -32,869 | J32: -39.1 | K32: 0 | L32: 0 | M32: 0
A33: 支出合计 | B33: =B29+B30+B31+B32 -> 1,321,478 | C33: =C29+C30+C31 -> 311,977 | D33: =D29+D30+D31 -> 66,337 | E33: =E29+E30+E31 -> 535,012 | F33: 938,390 | G33: 71.0 | H33: =H29+H30+H31+H32 -> 1,166,596 | I33: -228,206 | J33: -19.6 | K33: 67,774 | L33: 64,966 | M33: 2,808 | N33: 4.3
